[Event "Grandmaster Triathlon - Blitz (GM1)"]
[Site "Biel, Switzerland"]
[Date "2026.07.19"]
[Round "6.2"]
[White "Erdogmus, Yagiz Kaan"]
[Black "Le, Quang Liem"]
[Result "1/2-1/2"]
[TimeControl "3 min + 2 sec"]
[WhiteTitle "-"]
[BlackTitle "-"]
[WhiteFideId "44599790"]
[BlackFideId "12401137"]
[WhiteElo "2546"]
[BlackElo "2690"]

1. e4 {[%clk 00:03:03]} e5 {[%clk 00:03:03]} {[%emt 00:00:01]} 2. Nf3 {[%clk
00:03:04]} {[%emt 00:00:02]} Nc6 {[%clk 00:03:04]} {[%emt 00:00:01]} 3. Nc3
{[%clk 00:03:05]} Nf6 {[%clk 00:03:05]} 4. a3 {[%clk 00:03:06]} {[%emt
00:00:01]} d5 {[%clk 00:03:02]} {[%emt 00:00:05]} 5. Bb5 {[%clk 00:03:06]}
{[%emt 00:00:02]} Nxe4 {[%clk 00:02:52]} {[%emt 00:00:12]} 6. O-O {[%clk
00:03:01]} {[%emt 00:00:07]} Bd6 {[%clk 00:02:13]} {[%emt 00:00:41]} 7. Nxd5
{[%clk 00:02:58]} {[%emt 00:00:05]} O-O {[%clk 00:02:12]} {[%emt 00:00:04]} 8.
d3 {[%clk 00:02:52]} {[%emt 00:00:08]} Nc5 {[%clk 00:02:12]} {[%emt 00:00:01]}
9. h3 {[%clk 00:02:05]} {[%emt 00:00:50]} Be6 {[%clk 00:01:59]} {[%emt
00:00:15]} 10. Bxc6 {[%clk 00:01:43]} {[%emt 00:00:24]} bxc6 {[%clk 00:02:00]}
11. Nc3 {[%clk 00:01:44]} {[%emt 00:00:01]} h6 {[%clk 00:01:43]} {[%emt
00:00:19]} 12. Re1 {[%clk 00:01:45]} Nd7 {[%clk 00:01:41]} {[%emt 00:00:04]} 13.
d4 {[%clk 00:01:46]} f6 {[%clk 00:01:28]} {[%emt 00:00:16]} 14. dxe5 {[%clk
00:01:47]} {[%emt 00:00:01]} Nxe5 {[%clk 00:01:28]} {[%emt 00:00:01]} 15. Bf4
{[%clk 00:01:48]} Nxf3+ {[%clk 00:01:10]} {[%emt 00:00:20]} 16. Qxf3 {[%clk
00:01:48]} {[%emt 00:00:01]} Qd7 {[%clk 00:01:12]} 17. Rad1 {[%clk 00:01:43]}
{[%emt 00:00:08]} Rfe8 {[%clk 00:01:09]} {[%emt 00:00:04]} 18. Qg3 {[%clk
00:01:07]} {[%emt 00:00:38]} Bxf4 {[%clk 00:01:10]} {[%emt 00:00:01]} 19. Qxf4
{[%clk 00:01:08]} {[%emt 00:00:01]} Qf7 {[%clk 00:01:10]} {[%emt 00:00:02]} 20.
Qa4 {[%clk 00:00:44]} {[%emt 00:00:26]} Bf5 {[%clk 00:00:54]} {[%emt 00:00:17]}
21. Qxc6 {[%clk 00:00:38]} {[%emt 00:00:07]} Bxc2 {[%clk 00:00:47]} {[%emt
00:00:09]} 22. Rc1 {[%clk 00:00:39]} {[%emt 00:00:01]} Bb3 {[%clk 00:00:44]}
{[%emt 00:00:05]} 23. Re3 {[%clk 00:00:10]} {[%emt 00:00:31]} Rxe3 {[%clk
00:00:41]} {[%emt 00:00:04]} 24. Qxa8+ {[%clk 00:00:11]} {[%emt 00:00:01]} Qe8
{[%clk 00:00:34]} {[%emt 00:00:09]} 25. Qxa7 {[%clk 00:00:11]} {[%emt
00:00:02]} Re1+ {[%clk 00:00:36]} 26. Rxe1 {[%clk 00:00:13]} Qxe1+ {[%clk
00:00:36]} {[%emt 00:00:02]} 27. Kh2 {[%clk 00:00:14]} Kh7 {[%clk 00:00:34]}
{[%emt 00:00:04]} 28. Qe3 {[%clk 00:00:11]} {[%emt 00:00:05]} Qa1 {[%clk
00:00:25]} {[%emt 00:00:10]} 29. Qd2 {[%clk 00:00:09]} {[%emt 00:00:05]} Qf1
{[%clk 00:00:24]} {[%emt 00:00:03]} 30. Kg3 {[%clk 00:00:06]} {[%emt 00:00:04]}
Qc4 {[%clk 00:00:24]} {[%emt 00:00:02]} 31. Qf4 {[%clk 00:00:07]} {[%emt
00:00:01]} Qc5 {[%clk 00:00:25]} {[%emt 00:00:01]} 32. Ne4 {[%clk 00:00:06]}
{[%emt 00:00:03]} Qc2 {[%clk 00:00:25]} {[%emt 00:00:02]} 33. Qf5+ {[%clk
00:00:04]} {[%emt 00:00:04]} Kh8 {[%clk 00:00:27]} 34. Qc8+ {[%clk 00:00:04]}
{[%emt 00:00:01]} Bg8 {[%clk 00:00:27]} {[%emt 00:00:02]} 35. f3 {[%clk
00:00:04]} {[%emt 00:00:02]} Qxb2 {[%clk 00:00:26]} {[%emt 00:00:02]} 36. Qf8
{[%clk 00:00:04]} {[%emt 00:00:02]} Qe5+ {[%clk 00:00:26]} {[%emt 00:00:01]} 37.
Kf2 {[%clk 00:00:06]} {[%emt 00:00:01]} Qd4+ {[%clk 00:00:26]} {[%emt
00:00:02]} 38. Kg3 {[%clk 00:00:06]} {[%emt 00:00:02]} Qe5+ {[%clk 00:00:27]}
39. Kf2 {[%clk 00:00:07]} {[%emt 00:00:02]} Qd4+ {[%clk 00:00:28]} 1/2-1/2

[Event "Grandmaster Triathlon - Blitz (GM1)"]
[Site "Biel, Switzerland"]
[Date "2026.07.19"]
[Round "6.3"]
[White "Aronian, Levon"]
[Black "Bluebaum, Matthias"]
[Result "1-0"]
[TimeControl "3 min + 2 sec"]
[WhiteTitle "-"]
[BlackTitle "-"]
[WhiteFideId "13300474"]
[BlackFideId "24651516"]
[WhiteElo "2700"]
[BlackElo "2634"]

1. c4 {[%clk 00:03:03]} e6 {[%clk 00:03:03]} {[%emt 00:00:01]} 2. Nc3 {[%emt
00:00:03]} d5 {[%clk 00:03:04]} 3. d4 {[%clk 00:03:04]} {[%emt 00:00:01]} Bb4
{[%clk 00:03:05]} {[%emt 00:00:01]} 4. Nf3 {[%clk 00:03:00]} {[%emt 00:00:06]}
Nf6 {[%clk 00:03:06]} {[%emt 00:00:02]} 5. e3 {[%emt 00:00:06]} O-O {[%clk
00:03:04]} {[%emt 00:00:01]} 6. Bd2 {[%clk 00:03:00]} {[%emt 00:00:01]} Nbd7
{[%clk 00:03:00]} {[%emt 00:00:06]} 7. Rc1 {[%clk 00:02:58]} {[%emt 00:00:04]}
dxc4 {[%clk 00:02:58]} {[%emt 00:00:04]} 8. Bxc4 {[%clk 00:02:58]} {[%emt
00:00:03]} b6 {[%clk 00:02:58]} 9. O-O {[%clk 00:02:47]} {[%emt 00:00:12]} Bb7
{[%clk 00:02:59]} {[%emt 00:00:01]} 10. Qe2 {[%clk 00:02:46]} {[%emt 00:00:04]}
a6 {[%clk 00:02:59]} {[%emt 00:00:03]} 11. Rfd1 {[%clk 00:02:34]} {[%emt
00:00:13]} Qe7 {[%emt 00:00:20]} 12. a3 {[%clk 00:02:25]} {[%emt 00:00:10]} Bd6
{[%clk 00:02:42]} {[%emt 00:00:01]} 13. e4 {[%clk 00:02:18]} {[%emt 00:00:09]}
e5 {[%clk 00:02:43]} {[%emt 00:00:01]} 14. Bg5 {[%clk 00:02:12]} {[%emt
00:00:08]} h6 {[%clk 00:02:30]} {[%emt 00:00:16]} 15. Bh4 {[%clk 00:02:13]} c6
{[%clk 00:02:20]} {[%emt 00:00:11]} 16. dxe5 {[%clk 00:01:53]} {[%emt
00:00:22]} Nxe5 {[%clk 00:02:01]} {[%emt 00:00:22]} 17. Nd4 {[%clk 00:01:51]}
{[%emt 00:00:04]} Nxc4 {[%clk 00:01:26]} {[%emt 00:00:37]} 18. Qxc4 {[%clk
00:01:51]} {[%emt 00:00:02]} Bf4 {[%clk 00:01:26]} {[%emt 00:00:01]} 19. Ra1
{[%clk 00:01:37]} {[%emt 00:00:17]} c5 {[%clk 00:01:18]} {[%emt 00:00:11]} 20.
Nf5 {[%clk 00:01:24]} {[%emt 00:00:15]} Qe6 {[%clk 00:01:19]} {[%emt 00:00:01]}
21. Qxe6 {[%clk 00:01:13]} {[%emt 00:00:12]} fxe6 {[%clk 00:01:20]} 22. Nd6
{[%clk 00:01:12]} {[%emt 00:00:03]} Bc6 {[%clk 00:01:15]} {[%emt 00:00:07]} 23.
Bg3 {[%clk 00:00:58]} {[%emt 00:00:16]} Bxg3 {[%clk 00:00:58]} {[%emt
00:00:19]} 24. hxg3 {[%clk 00:00:59]} Rad8 {[%clk 00:01:00]} 25. f3 {[%clk
00:00:58]} {[%emt 00:00:05]} b5 {[%clk 00:00:44]} {[%emt 00:00:17]} 26. a4
{[%clk 00:00:59]} b4 {[%clk 00:00:34]} {[%emt 00:00:11]} 27. Ne2 {[%clk
00:01:00]} Nd7 {[%clk 00:00:27]} {[%emt 00:00:10]} 28. Nf4 {[%clk 00:00:55]}
{[%emt 00:00:07]} Rf6 {[%clk 00:00:13]} {[%emt 00:00:16]} 29. Nc4 {[%clk
00:00:56]} g5 {[%clk 00:00:14]} 30. Nh5 {[%clk 00:00:49]} {[%emt 00:00:09]}
Rff8 {[%clk 00:00:14]} {[%emt 00:00:02]} 31. Rd6 {[%clk 00:00:50]} {[%emt
00:00:02]} Nb8 {[%clk 00:00:11]} {[%emt 00:00:05]} 32. Rxe6 {[%clk 00:00:47]}
{[%emt 00:00:04]} Be8 {[%clk 00:00:10]} {[%emt 00:00:03]} 33. Nf6+ {[%clk
00:00:27]} {[%emt 00:00:22]} Kf7 {[%clk 00:00:10]} {[%emt 00:00:02]} 34. Rb6
{[%clk 00:00:25]} {[%emt 00:00:04]} Rd4 {[%clk 00:00:09]} {[%emt 00:00:04]} 35.
Nxe8 {[%clk 00:00:11]} {[%emt 00:00:16]} Nd7 {[%clk 00:00:10]} 36. Ned6+ {[%clk
00:00:10]} {[%emt 00:00:02]} Kg8 {[%clk 00:00:10]} {[%emt 00:00:02]} 37. Rxa6
{[%clk 00:00:11]} {[%emt 00:00:02]} g4 {[%clk 00:00:09]} {[%emt 00:00:03]} 38.
Rf1 {[%clk 00:00:11]} {[%emt 00:00:02]} 1-0

[Event "Grandmaster Triathlon - Blitz (GM1)"]
[Site "Biel, Switzerland"]
[Date "2026.07.19"]
[Round "7.1"]
[White "Martinez Alcantara, Jose Eduardo"]
[Black "Bluebaum, Matthias"]
[Result "1-0"]
[TimeControl "3 min + 2 sec"]
[WhiteTitle "-"]
[BlackTitle "-"]
[WhiteFideId "3805662"]
[BlackFideId "24651516"]
[WhiteElo "2641"]
[BlackElo "2634"]

1. c4 {[%clk 00:03:03]} e6 {[%clk 00:03:03]} {[%emt 00:00:01]} 2. g3 {[%clk
00:03:04]} {[%emt 00:00:01]} d5 {[%clk 00:03:04]} 3. Bg2 {[%clk 00:03:05]} Nf6
{[%clk 00:03:05]} {[%emt 00:00:01]} 4. Nf3 {[%clk 00:03:05]} {[%emt 00:00:02]}
Be7 {[%clk 00:03:06]} {[%emt 00:00:01]} 5. d4 {[%clk 00:03:06]} {[%emt
00:00:01]} O-O {[%clk 00:03:07]} {[%emt 00:00:02]} 6. b3 {[%clk 00:03:07]} c5
{[%clk 00:03:06]} {[%emt 00:00:03]} 7. O-O {[%clk 00:03:07]} {[%emt 00:00:02]}
Nc6 {[%clk 00:03:07]} {[%emt 00:00:01]} 8. cxd5 {[%clk 00:03:07]} {[%emt
00:00:01]} Nxd5 {[%clk 00:03:08]} {[%emt 00:00:01]} 9. Bb2 {[%clk 00:03:08]}
cxd4 {[%clk 00:03:09]} {[%emt 00:00:01]} 10. Nxd4 {[%clk 00:03:10]} Nxd4 {[%clk
00:03:10]} 11. Bxd4 {[%clk 00:03:11]} {[%emt 00:00:01]} b6 {[%clk 00:03:11]}
{[%emt 00:00:01]} 12. Nd2 {[%clk 00:02:57]} {[%emt 00:00:16]} Bb7 {[%clk
00:03:07]} {[%emt 00:00:05]} 13. Nc4 {[%clk 00:02:57]} {[%emt 00:00:01]} Rc8
{[%clk 00:03:03]} {[%emt 00:00:07]} 14. Rc1 {[%clk 00:02:49]} {[%emt 00:00:10]}
Qd7 {[%clk 00:02:45]} {[%emt 00:00:20]} 15. e3 {[%clk 00:02:46]} {[%emt
00:00:05]} Rfd8 {[%clk 00:02:32]} {[%emt 00:00:15]} 16. Qg4 {[%clk 00:02:44]}
{[%emt 00:00:03]} Nf6 {[%clk 00:02:03]} {[%emt 00:00:32]} 17. Bxf6 {[%clk
00:02:42]} {[%emt 00:00:04]} Bxf6 {[%clk 00:02:04]} {[%emt 00:00:01]} 18. Rcd1
{[%clk 00:02:27]} {[%emt 00:00:18]} Bd5 {[%clk 00:00:29]} {[%emt 00:01:37]} 19.
e4 {[%clk 00:02:24]} {[%emt 00:00:05]} Bxc4 {[%clk 00:00:30]} {[%emt 00:00:01]}
20. Rxd7 {[%clk 00:02:22]} {[%emt 00:00:04]} Rxd7 {[%clk 00:00:30]} 21. bxc4
{[%clk 00:02:11]} {[%emt 00:00:13]} Rxc4 {[%emt 00:00:17]} 22. Rd1 {[%clk
00:01:57]} Rdc7 {[%clk 00:00:25]} {[%emt 00:00:09]} 23. Bf1 {[%clk 00:01:51]}
{[%emt 00:00:07]} Rd4 {[%clk 00:00:17]} {[%emt 00:00:11]} 24. Rxd4 {[%clk
00:01:31]} {[%emt 00:00:21]} Bxd4 {[%clk 00:00:18]} {[%emt 00:00:01]} 25. Qd1
{[%clk 00:01:27]} {[%emt 00:00:06]} e5 {[%clk 00:00:13]} {[%emt 00:00:07]} 26.
Kg2 {[%clk 00:01:18]} {[%emt 00:00:10]} g6 {[%clk 00:00:14]} 27. h4 {[%clk
00:01:13]} {[%emt 00:00:07]} Kg7 {[%clk 00:00:13]} {[%emt 00:00:04]} 28. Bd3
{[%clk 00:01:06]} {[%emt 00:00:09]} Rc3 {[%clk 00:00:05]} {[%emt 00:00:09]} 29.
Qe2 {[%clk 00:01:03]} {[%emt 00:00:05]} Rc6 {[%clk 00:00:04]} {[%emt 00:00:04]}
30. Qd2 {[%clk 00:00:50]} {[%emt 00:00:15]} Rf6 {[%clk 00:00:04]} {[%emt
00:00:02]} 31. f4 {[%clk 00:00:49]} {[%emt 00:00:02]} Rc6 {[%clk 00:00:04]}
{[%emt 00:00:02]} 32. f5 {[%clk 00:00:46]} {[%emt 00:00:05]} h6 {[%clk
00:00:05]} {[%emt 00:00:02]} 33. Qe2 {[%clk 00:00:45]} {[%emt 00:00:03]} Rc3
{[%clk 00:00:05]} {[%emt 00:00:02]} 34. Qf3 {[%clk 00:00:40]} {[%emt 00:00:07]}
h5 {[%clk 00:00:05]} {[%emt 00:00:02]} 35. Qd1 {[%clk 00:00:38]} {[%emt
00:00:04]} Rc6 {[%clk 00:00:05]} {[%emt 00:00:02]} 36. Kh3 {[%clk 00:00:37]}
{[%emt 00:00:02]} Rc3 {[%clk 00:00:06]} 37. Qd2 {[%clk 00:00:37]} {[%emt
00:00:02]} Ra3 {[%clk 00:00:06]} {[%emt 00:00:03]} 38. fxg6 {[%clk 00:00:35]}
{[%emt 00:00:04]} fxg6 {[%clk 00:00:07]} {[%emt 00:00:02]} 39. Bc4 {[%clk
00:00:34]} {[%emt 00:00:03]} Rf3 {[%clk 00:00:06]} {[%emt 00:00:03]} 40. Kg2
{[%clk 00:00:31]} {[%emt 00:00:04]} Re3 {[%clk 00:00:06]} {[%emt 00:00:02]} 41.
Bd5 {[%clk 00:00:32]} {[%emt 00:00:01]} Rc3 {[%clk 00:00:06]} {[%emt 00:00:03]}
42. Qg5 {[%clk 00:00:30]} {[%emt 00:00:03]} Rc2+ {[%clk 00:00:07]} {[%emt
00:00:01]} 43. Kf1 {[%clk 00:00:28]} {[%emt 00:00:04]} Rf2+ {[%clk 00:00:06]}
{[%emt 00:00:03]} 44. Ke1 {[%clk 00:00:29]} Rf6 {[%clk 00:00:07]} {[%emt
00:00:01]} 45. a4 {[%clk 00:00:20]} {[%emt 00:00:11]} a6 {[%clk 00:00:07]}
{[%emt 00:00:02]} 46. Bc4 {[%clk 00:00:19]} {[%emt 00:00:02]} a5 {[%clk
00:00:07]} {[%emt 00:00:02]} 47. Kd1 {[%clk 00:00:20]} {[%emt 00:00:01]} Bc3
{[%clk 00:00:06]} {[%emt 00:00:03]} 48. g4 {[%clk 00:00:16]} {[%emt 00:00:05]}
hxg4 {[%clk 00:00:07]} {[%emt 00:00:01]} 49. Qxg4 {[%clk 00:00:18]} Bd4 {[%clk
00:00:05]} {[%emt 00:00:05]} 50. h5 {[%clk 00:00:19]} Kh6 {[%clk 00:00:06]}
{[%emt 00:00:01]} 51. hxg6 {[%clk 00:00:18]} {[%emt 00:00:02]} Rxg6 {[%clk
00:00:07]} 52. Qh4+ {[%clk 00:00:17]} {[%emt 00:00:03]} Kg7 {[%clk 00:00:08]}
{[%emt 00:00:01]} 53. Qe7+ {[%clk 00:00:17]} {[%emt 00:00:02]} Kh6 {[%clk
00:00:09]} {[%emt 00:00:01]} 54. Be6 {[%clk 00:00:18]} {[%emt 00:00:01]} Bc5
{[%clk 00:00:08]} {[%emt 00:00:03]} 55. Qh4+ {[%clk 00:00:17]} {[%emt
00:00:02]} Kg7 {[%clk 00:00:10]} 56. Bf5 {[%clk 00:00:18]} {[%emt 00:00:01]}
Rg1+ {[%clk 00:00:10]} {[%emt 00:00:02]} 57. Kc2 {[%clk 00:00:19]} {[%emt
00:00:01]} Bd4 {[%clk 00:00:11]} {[%emt 00:00:01]} 58. Qe7+ {[%clk 00:00:18]}
{[%emt 00:00:03]} Kh6 {[%clk 00:00:12]} 59. Qf6+ {[%clk 00:00:18]} Kh5 {[%clk
00:00:14]} {[%emt 00:00:01]} 60. Qh8+ {[%clk 00:00:19]} {[%emt 00:00:01]} Kg5
{[%clk 00:00:15]} {[%emt 00:00:01]} 61. Kd3 {[%clk 00:00:11]} {[%emt 00:00:11]}
Kf4 {[%clk 00:00:12]} {[%emt 00:00:05]} 62. Qh2+ {[%clk 00:00:08]} {[%emt
00:00:04]} Kg5 {[%clk 00:00:10]} {[%emt 00:00:04]} 63. Kc4 {[%clk 00:00:08]}
{[%emt 00:00:02]} Rc1+ {[%clk 00:00:11]} {[%emt 00:00:02]} 64. Kd5 {[%clk
00:00:09]} Rg1 {[%clk 00:00:11]} {[%emt 00:00:02]} 65. Ke6 {[%clk 00:00:09]}
{[%emt 00:00:02]} Ra1 {[%clk 00:00:05]} {[%emt 00:00:07]} 66. Qg3+ {[%clk
00:00:09]} {[%emt 00:00:01]} Kh5 {[%clk 00:00:07]} {[%emt 00:00:01]} 67. Qg4+
{[%clk 00:00:11]} 1-0

[Event "Grandmaster Triathlon - Blitz (GM1)"]
[Site "Biel, Switzerland"]
[Date "2026.07.19"]
[Round "7.2"]
[White "Suleymanli, Aydin"]
[Black "Erdogmus, Yagiz Kaan"]
[Result "0-1"]
[TimeControl "3 min + 2 sec"]
[WhiteTitle "-"]
[BlackTitle "-"]
[WhiteFideId "13413937"]
[BlackFideId "44599790"]
[WhiteElo "2559"]
[BlackElo "2546"]

1. d4 {[%clk 00:03:04]} d6 {[%clk 00:03:01]} {[%emt 00:00:04]} 2. Nf3 {[%clk
00:03:03]} {[%emt 00:00:02]} Nf6 {[%clk 00:03:00]} {[%emt 00:00:02]} 3. c4
{[%clk 00:03:04]} {[%emt 00:00:01]} g6 {[%clk 00:03:00]} {[%emt 00:00:03]} 4.
Nc3 {[%clk 00:03:05]} Bg7 {[%clk 00:03:02]} 5. g3 {[%clk 00:03:06]} O-O {[%clk
00:02:58]} {[%emt 00:00:06]} 6. Bg2 {[%clk 00:03:07]} Nc6 {[%clk 00:02:52]}
{[%emt 00:00:09]} 7. O-O {[%clk 00:03:07]} {[%emt 00:00:02]} e5 {[%clk
00:02:49]} {[%emt 00:00:05]} 8. dxe5 {[%clk 00:02:57]} {[%emt 00:00:11]} dxe5
{[%clk 00:02:27]} {[%emt 00:00:25]} 9. Bg5 {[%clk 00:02:51]} {[%emt 00:00:08]}
Be6 {[%clk 00:02:17]} {[%emt 00:00:12]} 10. Qa4 {[%clk 00:02:52]} Qc8 {[%clk
00:01:49]} {[%emt 00:00:30]} 11. Bxf6 {[%clk 00:02:38]} {[%emt 00:00:16]} Bxf6
{[%clk 00:01:51]} 12. Nd5 {[%clk 00:02:39]} Bd8 {[%clk 00:01:37]} {[%emt
00:00:16]} 13. Rfd1 {[%clk 00:02:27]} {[%emt 00:00:13]} e4 {[%clk 00:01:32]}
{[%emt 00:00:08]} 14. Nd2 {[%clk 00:02:23]} {[%emt 00:00:06]} f5 {[%clk
00:01:31]} {[%emt 00:00:03]} 15. Nb3 {[%clk 00:02:25]} Ne5 {[%clk 00:01:28]}
{[%emt 00:00:04]} 16. Qb4 {[%clk 00:01:53]} {[%emt 00:00:34]} Re8 {[%clk
00:01:24]} {[%emt 00:00:06]} 17. Rac1 {[%clk 00:01:15]} {[%emt 00:00:40]} c6
{[%clk 00:01:23]} {[%emt 00:00:03]} 18. Nf4 {[%clk 00:00:16]} {[%emt 00:01:01]}
Bf7 {[%clk 00:01:24]} {[%emt 00:00:01]} 19. h4 {[%clk 00:00:17]} a5 {[%clk
00:01:22]} {[%emt 00:00:04]} 20. Qc3 {[%clk 00:00:15]} {[%emt 00:00:01]} Bf6
{[%clk 00:01:22]} {[%emt 00:00:05]} 21. Qc2 {[%clk 00:00:13]} {[%emt 00:00:04]}
Nxc4 {[%clk 00:01:22]} {[%emt 00:00:02]} 22. Nc5 {[%clk 00:00:12]} {[%emt
00:00:03]} Re7 {[%clk 00:00:49]} {[%emt 00:00:35]} 23. e3 {[%clk 00:00:06]}
{[%emt 00:00:08]} Nxb2 {[%clk 00:00:48]} {[%emt 00:00:03]} 24. Rd6 {[%clk
00:00:04]} {[%emt 00:00:04]} Be5 {[%clk 00:00:49]} 25. Rd4 {[%clk 00:00:03]}
{[%emt 00:00:03]} Bxd4 {[%clk 00:00:49]} {[%emt 00:00:02]} 26. exd4 {[%clk
00:00:05]} Nc4 {[%clk 00:00:50]} 27. Na4 {[%clk 00:00:05]} {[%emt 00:00:02]}
Qd8 {[%clk 00:00:50]} {[%emt 00:00:02]} 28. Qc3 {[%clk 00:00:05]} {[%emt
00:00:02]} b5 {[%clk 00:00:48]} {[%emt 00:00:04]} 29. Nc5 {[%clk 00:00:06]} Qd6
{[%clk 00:00:49]} 30. Bf1 {[%clk 00:00:06]} {[%emt 00:00:01]} e3 {[%clk
00:00:45]} {[%emt 00:00:07]} 31. f3 {[%clk 00:00:05]} {[%emt 00:00:03]} Nd2
{[%clk 00:00:42]} {[%emt 00:00:04]} 32. Be2 {[%clk 00:00:07]} b4 {[%clk
00:00:42]} {[%emt 00:00:02]} 33. Qb2 {[%clk 00:00:07]} {[%emt 00:00:02]} Rd8
{[%clk 00:00:42]} {[%emt 00:00:02]} 34. d5 {[%clk 00:00:05]} {[%emt 00:00:04]}
cxd5 {[%clk 00:00:40]} {[%emt 00:00:03]} 35. Qd4 {[%clk 00:00:05]} {[%emt
00:00:02]} Qe5 {[%clk 00:00:41]} 36. Qd3 {[%clk 00:00:04]} {[%emt 00:00:03]} d4
{[%clk 00:00:40]} {[%emt 00:00:03]} 37. Rc2 {[%clk 00:00:04]} {[%emt 00:00:02]}
Rc7 {[%clk 00:00:40]} {[%emt 00:00:03]} 38. Nce6 {[%clk 00:00:04]} {[%emt
00:00:02]} Rxc2 {[%clk 00:00:35]} {[%emt 00:00:08]} 39. Nxd8 {[%clk 00:00:05]}
Rc1+ {[%clk 00:00:36]} {[%emt 00:00:01]} 40. Kg2 {[%clk 00:00:06]} Bc4 {[%clk
00:00:37]} 0-1

[Event "Grandmaster Triathlon - Blitz (GM1)"]
[Site "Biel, Switzerland"]
[Date "2026.07.19"]
[Round "7.3"]
[White "Le, Quang Liem"]
[Black "Aronian, Levon"]
[Result "0-1"]
[TimeControl "3 min + 2 sec"]
[WhiteTitle "-"]
[BlackTitle "-"]
[WhiteFideId "12401137"]
[BlackFideId "13300474"]
[WhiteElo "2690"]
[BlackElo "2700"]

1. d4 {[%clk 00:03:03]} d5 {[%clk 00:03:04]} {[%emt 00:00:01]} 2. c4 {[%clk
00:03:04]} c6 {[%clk 00:03:05]} 3. Nc3 {[%clk 00:03:05]} Nf6 {[%clk 00:03:06]}
{[%emt 00:00:01]} 4. e3 {[%clk 00:03:06]} Bf5 {[%clk 00:03:07]} {[%emt
00:00:02]} 5. Nf3 {[%clk 00:03:07]} {[%emt 00:00:01]} e6 {[%clk 00:03:07]}
{[%emt 00:00:02]} 6. Nh4 {[%clk 00:03:08]} {[%emt 00:00:01]} Bg6 {[%clk
00:03:08]} 7. Be2 {[%clk 00:03:07]} {[%emt 00:00:03]} Nbd7 {[%clk 00:03:03]}
{[%emt 00:00:07]} 8. O-O {[%clk 00:03:02]} {[%emt 00:00:07]} Ne4 {[%clk
00:02:59]} {[%emt 00:00:07]} 9. g3 {[%clk 00:03:01]} {[%emt 00:00:03]} Nd6
{[%clk 00:03:00]} {[%emt 00:00:01]} 10. b3 {[%clk 00:02:52]} {[%emt 00:00:11]}
Be7 {[%clk 00:03:00]} {[%emt 00:00:02]} 11. Ng2 {[%clk 00:02:50]} {[%emt
00:00:04]} f5 {[%clk 00:02:46]} {[%emt 00:00:16]} 12. Bb2 {[%clk 00:02:41]}
{[%emt 00:00:11]} Bf7 {[%clk 00:02:43]} {[%emt 00:00:04]} 13. Qc2 {[%clk
00:02:35]} {[%emt 00:00:08]} g5 {[%clk 00:02:43]} {[%emt 00:00:03]} 14. f3
{[%clk 00:02:27]} {[%emt 00:00:10]} Bg6 {[%clk 00:02:40]} {[%emt 00:00:06]} 15.
Bd3 {[%clk 00:02:20]} {[%emt 00:00:09]} Nf6 {[%clk 00:02:41]} {[%emt 00:00:01]}
16. Rad1 {[%clk 00:02:16]} {[%emt 00:00:06]} h5 {[%clk 00:02:34]} {[%emt
00:00:09]} 17. c5 {[%clk 00:01:53]} {[%emt 00:00:25]} Nf7 {[%clk 00:02:35]}
{[%emt 00:00:01]} 18. e4 {[%clk 00:01:52]} {[%emt 00:00:03]} Qd7 {[%clk
00:02:29]} {[%emt 00:00:08]} 19. e5 {[%clk 00:01:41]} {[%emt 00:00:13]} Nh7
{[%clk 00:02:28]} {[%emt 00:00:02]} 20. b4 {[%clk 00:01:32]} {[%emt 00:00:12]}
g4 {[%clk 00:02:15]} {[%emt 00:00:16]} 21. Nf4 {[%clk 00:01:23]} {[%emt
00:00:11]} Nf8 {[%clk 00:02:14]} {[%emt 00:00:03]} 22. Nxg6 {[%clk 00:01:17]}
{[%emt 00:00:07]} Nxg6 {[%clk 00:02:15]} {[%emt 00:00:01]} 23. fxg4 {[%clk
00:01:18]} hxg4 {[%clk 00:02:16]} {[%emt 00:00:01]} 24. Rxf5 {[%clk 00:01:19]}
{[%emt 00:00:01]} Nf8 {[%clk 00:01:45]} {[%emt 00:00:33]} 25. Rff1 {[%clk
00:00:44]} {[%emt 00:00:37]} Ng5 {[%clk 00:01:28]} {[%emt 00:00:20]} 26. Be2
{[%clk 00:00:45]} {[%emt 00:00:01]} Nf3+ {[%clk 00:01:16]} {[%emt 00:00:14]} 27.
Bxf3 {[%clk 00:00:45]} {[%emt 00:00:02]} gxf3 {[%clk 00:01:17]} 28. Rxf3 {[%clk
00:00:46]} {[%emt 00:00:01]} O-O-O {[%clk 00:01:18]} {[%emt 00:00:01]} 29. Bc1
{[%clk 00:00:41]} {[%emt 00:00:07]} Qe8 {[%clk 00:01:09]} {[%emt 00:00:12]} 30.
Rdf1 {[%clk 00:00:38]} {[%emt 00:00:05]} Qh5 {[%clk 00:01:08]} {[%emt
00:00:03]} 31. Qe2 {[%clk 00:00:32]} {[%emt 00:00:07]} Ng6 {[%clk 00:00:47]}
{[%emt 00:00:24]} 32. Rf7 {[%emt 00:00:09]} Qh3 {[%clk 00:00:47]} 33. b5 {[%clk
00:00:23]} {[%emt 00:00:05]} Rdg8 {[%clk 00:00:21]} {[%emt 00:00:28]} 34. bxc6
{[%clk 00:00:16]} {[%emt 00:00:09]} bxc6 {[%clk 00:00:22]} 35. R1f2 {[%clk
00:00:03]} {[%emt 00:00:15]} Kb7 {[%clk 00:00:08]} {[%emt 00:00:16]} 36. Be3
{[%clk 00:00:04]} Ka8 {[%clk 00:00:07]} {[%emt 00:00:03]} 37. Qa6 {[%clk
00:00:05]} Nxe5 {[%clk 00:00:08]} {[%emt 00:00:01]} 38. R7f3 {[%clk 00:00:03]}
{[%emt 00:00:04]} Nxf3+ {[%clk 00:00:07]} {[%emt 00:00:03]} 39. Rxf3 {[%clk
00:00:04]} {[%emt 00:00:01]} Qxh2+ {[%clk 00:00:08]} 40. Kf1 {[%clk 00:00:06]}
Rc8 {[%clk 00:00:09]} {[%emt 00:00:02]} 41. Bf2 {[%clk 00:00:05]} {[%emt
00:00:02]} Qh1+ {[%clk 00:00:09]} {[%emt 00:00:02]} 42. Ke2 {[%clk 00:00:07]}
Qc1 {[%clk 00:00:10]} 43. Qd3 {[%clk 00:00:07]} {[%emt 00:00:02]} Rhf8 {[%clk
00:00:11]} {[%emt 00:00:01]} 44. Be3 {[%clk 00:00:06]} {[%emt 00:00:02]} Qh1
{[%clk 00:00:10]} {[%emt 00:00:03]} 45. Rxf8 {[%clk 00:00:07]} {[%emt
00:00:02]} Rxf8 {[%clk 00:00:11]} 46. Bf4 {[%clk 00:00:08]} Qg2+ {[%clk
00:00:11]} {[%emt 00:00:02]} 47. Kd1 {[%clk 00:00:10]} {[%emt 00:00:01]} Qb2
{[%clk 00:00:10]} {[%emt 00:00:03]} 48. Qa6 {[%clk 00:00:10]} {[%emt 00:00:02]}
Qb7 {[%clk 00:00:10]} {[%emt 00:00:01]} 49. Qe2 {[%clk 00:00:08]} {[%emt
00:00:03]} Bf6 {[%clk 00:00:10]} {[%emt 00:00:02]} 50. Bd6 {[%clk 00:00:06]}
{[%emt 00:00:04]} Rh8 {[%clk 00:00:07]} {[%emt 00:00:06]} 51. Qf3 {[%clk
00:00:08]} Bxd4 {[%clk 00:00:07]} {[%emt 00:00:02]} 52. Ne2 {[%clk 00:00:08]}
{[%emt 00:00:02]} Qb1+ {[%clk 00:00:07]} {[%emt 00:00:02]} 53. Kd2 {[%clk
00:00:09]} Qxa2+ {[%clk 00:00:08]} 54. Ke1 {[%clk 00:00:10]} Rh1+ {[%clk
00:00:08]} {[%emt 00:00:02]} 55. Qxh1 {[%clk 00:00:10]} {[%emt 00:00:02]} Qb1+
{[%clk 00:00:10]} 0-1